[Event "Titled Tuesday Blitz June 20 Late 2023"]
[White "Ozalp, Burak"]
[Black "KSho99"]
[WhiteFideId "6314210"]
[WhiteElo "2106"]
[BlackElo "2203"]
[Result "1/2-1/2"]
[Round "5"]
[TimeControl "180+2"]
[Date "2023.06.20"]
[WhiteClock "0:01:18"]
[BlackClock "0:01:18"]
[Board "167"]

1. c4 {[%clk 0:03:00]}  f5 {[%clk 0:02:58]} 2. f4 {[%clk 0:02:58]}  Nf6 {[%clk 0:02:56]} 3. Nf3 {[%clk 0:02:55]}  d6 {[%clk 0:02:55]} 4. g3 {[%clk 0:02:53]}  g6 {[%clk 0:02:55]} 5. Bg2 {[%clk 0:02:54]}  Bg7 {[%clk 0:02:55]} 6. O-O {[%clk 0:02:55]}  O-O {[%clk 0:02:56]} 7. Nc3 {[%clk 0:02:55]}  c6 {[%clk 0:02:55]} 8. b3 {[%clk 0:02:55]}  Nbd7 {[%clk 0:02:51]} 9. Bb2 {[%clk 0:02:54]}  Qe8 {[%clk 0:02:51]} 10. d3 {[%clk 0:02:48]}  e5 {[%clk 0:02:50]} 11. e4 {[%clk 0:02:37]}  exf4 {[%clk 0:02:44]} 12. gxf4 {[%clk 0:02:36]}  fxe4 {[%clk 0:02:43]} 13. Nxe4 {[%clk 0:02:25]}  Nxe4 {[%clk 0:02:40]} 14. Bxg7 {[%clk 0:02:26]}  Kxg7 {[%clk 0:02:40]} 15. dxe4 {[%clk 0:02:25]}  Rxf4 {[%clk 0:02:27]} 16. Qxd6 {[%clk 0:02:19]}  Qf8 {[%clk 0:02:23]} 17. Rad1 {[%clk 0:02:13]}  Qxd6 {[%clk 0:02:13]} 18. Rxd6 {[%clk 0:02:14]}  Nc5 {[%clk 0:02:14]} 19. e5 {[%clk 0:02:04]}  Bf5 {[%clk 0:02:04]} 20. Re1 {[%clk 0:01:52]}  Re8 {[%clk 0:01:57]} 21. b4 {[%clk 0:01:45]}  Ne6 {[%clk 0:01:55]} 22. Rd7+ {[%clk 0:01:40]}  Kg8 {[%clk 0:01:53]} 23. Rxb7 {[%clk 0:01:35]}  Rxc4 {[%clk 0:01:53]} 24. Rd1 {[%clk 0:01:35]}  Nf4 {[%clk 0:01:44]} 25. Rdd7 {[%clk 0:01:29]}  Bxd7 {[%clk 0:01:43]} 26. Rxd7 {[%clk 0:01:29]}  Nxg2 {[%clk 0:01:35]} 27. Kxg2 {[%clk 0:01:28]}  Rc2+ {[%clk 0:01:36]} 28. Kg3 {[%clk 0:01:28]}  Rxa2 {[%clk 0:01:36]} 29. Ng5 {[%clk 0:01:27]}  h6 {[%clk 0:01:20]} 30. Ne4 {[%clk 0:01:18]}  Rxe5 {[%clk 0:01:18]} 31. Nf6+ {[%clk 0:01:18]}  Kf8 {[%clk 0:01:18]} 32. Nh7+ {[%clk 0:01:17]}  Kg8 {[%clk 0:01:17]} 33. Nf6+ {[%clk 0:01:18]}  Kf8 {[%clk 0:01:18]} 34. Nh7+ {[%clk 0:01:18]}  Kg8 {[%clk 0:01:18]} 35. Nf6+ {[%clk 0:01:18]} 1/2-1/2


[Site "https://www.chess.com"]

[Event "Titled Tuesday Blitz June 20 Late 2023"]
[White "Calderin Gonzalez, Roberto"]
[Black "Sala, Giulia"]
[WhiteFideId "5102979"]
[BlackFideId "2840451"]
[WhiteElo "2092"]
[BlackElo "1769"]
[Result "0-1"]
[Round "5"]
[TimeControl "180+2"]
[Date "2023.06.20"]
[WhiteClock "0:02:11"]
[BlackClock "0:02:38"]
[Board "172"]

1. e4 {[%clk 0:03:00]}  e6 {[%clk 0:03:00]} 2. d4 {[%clk 0:03:00]}  d5 {[%clk 0:03:00]} 3. e5 {[%clk 0:03:01]}  c5 {[%clk 0:03:00]} 4. c3 {[%clk 0:03:01]}  Nc6 {[%clk 0:03:01]} 5. Nf3 {[%clk 0:03:01]}  Qb6 {[%clk 0:02:58]} 6. a3 {[%clk 0:03:01]}  Nh6 {[%clk 0:02:58]} 7. b4 {[%clk 0:03:02]}  cxd4 {[%clk 0:02:59]} 8. cxd4 {[%clk 0:03:02]}  Nf5 {[%clk 0:02:58]} 9. Bb2 {[%clk 0:03:02]}  Bd7 {[%clk 0:02:59]} 10. Be2 {[%clk 0:02:59]}  Rc8 {[%clk 0:02:57]} 11. O-O {[%clk 0:02:59]}  Na5 {[%clk 0:02:57]} 12. bxa5 {[%clk 0:02:56]}  Qxb2 {[%clk 0:02:58]} 13. Bd3 {[%clk 0:02:41]}  Qxa1 {[%clk 0:02:53]} 14. Bxf5 {[%clk 0:02:41]}  exf5 {[%clk 0:02:53]} 15. Qb3 {[%clk 0:02:39]}  Be7 {[%clk 0:02:47]} 16. Qxb7 {[%clk 0:02:27]}  Be6 {[%clk 0:02:46]} 17. Qb3 {[%clk 0:02:27]}  O-O {[%clk 0:02:45]} 18. Nbd2 {[%clk 0:02:25]}  Qxa3 {[%clk 0:02:44]} 19. Qb7 {[%clk 0:02:22]}  Rb8 {[%clk 0:02:41]} 20. Qxa7 {[%clk 0:02:11]}  Ra8 {[%clk 0:02:40]} 21. Qb7 {[%clk 0:02:11]}  Rfb8 {[%clk 0:02:40]} 22. Qc7 {[%clk 0:02:11]}  Rc8 {[%clk 0:02:38]} 23. Qa7 {[%clk 0:02:11]} 0-1


[Site "https://www.chess.com"]

[Event "Titled Tuesday Blitz June 20 Late 2023"]
[White "Yoo, Christopher Woojin"]
[Black "Nakamura, Hikaru"]
[WhiteFideId "30909694"]
[BlackFideId "2016192"]
[WhiteElo "2528"]
[BlackElo "2874"]
[Result "1-0"]
[Round "6"]
[TimeControl "180+2"]
[Date "2023.06.20"]
[WhiteClock "0:00:04"]
[BlackClock "0:00:17"]
[Board "1"]

1. e4 {[%clk 0:03:00]}  c5 {[%clk 0:02:54]} 2. Nf3 {[%clk 0:03:00]}  g6 {[%clk 0:02:53]} 3. c3 {[%clk 0:02:55]}  Bg7 {[%clk 0:02:51]} 4. d4 {[%clk 0:02:56]}  cxd4 {[%clk 0:02:45]} 5. cxd4 {[%clk 0:02:55]}  d5 {[%clk 0:02:42]} 6. e5 {[%clk 0:02:48]}  Nc6 {[%clk 0:02:40]} 7. Bb5 {[%clk 0:02:42]}  Nh6 {[%clk 0:02:38]} 8. O-O {[%clk 0:02:36]}  O-O {[%clk 0:02:37]} 9. h3 {[%clk 0:02:29]}  f6 {[%clk 0:02:35]} 10. Re1 {[%clk 0:02:20]}  Nf7 {[%clk 0:02:29]} 11. exf6 {[%clk 0:02:11]}  exf6 {[%clk 0:02:30]} 12. Nc3 {[%clk 0:02:10]}  a6 {[%clk 0:02:28]} 13. Ba4 {[%clk 0:01:52]}  Na5 {[%clk 0:02:14]} 14. Bb3 {[%clk 0:01:47]}  Nc4 {[%clk 0:02:09]} 15. Bf4 {[%clk 0:01:19]}  b5 {[%clk 0:02:05]} 16. a4 {[%clk 0:01:17]}  Nxb2 {[%clk 0:01:20]} 17. Qe2 {[%clk 0:00:58]}  Nxa4 {[%clk 0:01:18]} 18. Nxd5 {[%clk 0:00:58]}  Kh8 {[%clk 0:01:11]} 19. Rac1 {[%clk 0:00:43]}  g5 {[%clk 0:00:52]} 20. Bc7 {[%clk 0:00:36]}  Qd7 {[%clk 0:00:52]} 21. Bg3 {[%clk 0:00:34]}  Ra7 {[%clk 0:00:48]} 22. Qd2 {[%clk 0:00:26]}  Qd8 {[%clk 0:00:40]} 23. Bc7 {[%clk 0:00:24]}  Qd7 {[%clk 0:00:41]} 24. Re7 {[%clk 0:00:13]}  Qf5 {[%clk 0:00:41]} 25. Ne3 {[%clk 0:00:14]}  Qg6 {[%clk 0:00:42]} 26. d5 {[%clk 0:00:10]}  g4 {[%clk 0:00:36]} 27. hxg4 {[%clk 0:00:10]}  Bxg4 {[%clk 0:00:37]} 28. Nxg4 {[%clk 0:00:09]}  Qxg4 {[%clk 0:00:38]} 29. d6 {[%clk 0:00:06]}  Bh6 {[%clk 0:00:37]} 30. Rxf7 {[%clk 0:00:06]}  Rxf7 {[%clk 0:00:34]} 31. Qxh6 {[%clk 0:00:06]}  Rg7 {[%clk 0:00:35]} 32. Qh2 {[%clk 0:00:05]}  Qf4 {[%clk 0:00:35]} 33. Qxf4 {[%clk 0:00:04]}  Nc3 {[%clk 0:00:17]} 34. Rxc3 {[%clk 0:00:04]} 1-0


[Site "https://www.chess.com"]

[Event "Titled Tuesday Blitz June 20 Late 2023"]
[White "Sviridov, Valery"]
[Black "Martinez Alcantara, Jose Eduardo"]
[WhiteFideId "4120680"]
[BlackFideId "3805662"]
[WhiteElo "2457"]
[BlackElo "2711"]
[Result "0-1"]
[Round "6"]
[TimeControl "180+2"]
[Date "2023.06.20"]
[WhiteClock "0:00:17"]
[BlackClock "0:00:13"]
[Board "2"]

1. d4 {[%clk 0:03:00]}  Nf6 {[%clk 0:02:59]} 2. Nf3 {[%clk 0:03:00]}  e6 {[%clk 0:03:00]} 3. e3 {[%clk 0:03:00]}  b6 {[%clk 0:02:58]} 4. Nbd2 {[%clk 0:03:01]}  Bb7 {[%clk 0:02:58]} 5. Bd3 {[%clk 0:03:01]}  d6 {[%clk 0:02:57]} 6. O-O {[%clk 0:03:00]}  Nbd7 {[%clk 0:02:57]} 7. e4 {[%clk 0:03:01]}  Be7 {[%clk 0:02:49]} 8. Re1 {[%clk 0:02:59]}  e5 {[%clk 0:02:39]} 9. c3 {[%clk 0:02:58]}  O-O {[%clk 0:02:39]} 10. Nf1 {[%clk 0:02:53]}  Re8 {[%clk 0:02:39]} 11. Ng3 {[%clk 0:02:53]}  Bf8 {[%clk 0:02:39]} 12. Bg5 {[%clk 0:02:52]}  h6 {[%clk 0:02:38]} 13. Bd2 {[%clk 0:02:53]}  a6 {[%clk 0:02:34]} 14. a4 {[%clk 0:02:51]}  g6 {[%clk 0:02:30]} 15. Qc1 {[%clk 0:02:47]}  Kh7 {[%clk 0:02:29]} 16. h3 {[%clk 0:02:47]}  Bg7 {[%clk 0:02:30]} 17. Qc2 {[%clk 0:02:47]}  Qc8 {[%clk 0:02:21]} 18. Bc4 {[%clk 0:02:39]}  Re7 {[%clk 0:02:11]} 19. Bd3 {[%clk 0:02:32]}  c5 {[%clk 0:02:10]} 20. dxe5 {[%clk 0:02:27]}  Nxe5 {[%clk 0:02:03]} 21. Nxe5 {[%clk 0:02:27]}  dxe5 {[%clk 0:02:04]} 22. Bc4 {[%clk 0:02:27]}  Bc6 {[%clk 0:02:02]} 23. Be3 {[%clk 0:02:17]}  Qb7 {[%clk 0:01:50]} 24. f3 {[%clk 0:02:18]}  Rd7 {[%clk 0:01:44]} 25. Bf1 {[%clk 0:02:14]}  a5 {[%clk 0:01:36]} 26. Qb3 {[%clk 0:02:11]}  Rad8 {[%clk 0:01:35]} 27. Bc4 {[%clk 0:02:11]}  h5 {[%clk 0:01:35]} 28. Rad1 {[%clk 0:02:06]}  Bh6 {[%clk 0:01:21]} 29. Nf1 {[%clk 0:02:06]}  Bxe3+ {[%clk 0:01:16]} 30. Nxe3 {[%clk 0:02:07]}  Kg7 {[%clk 0:01:15]} 31. h4 {[%clk 0:01:58]}  Qc7 {[%clk 0:01:00]} 32. Bf1 {[%clk 0:01:30]}  Rxd1 {[%clk 0:00:57]} 33. Rxd1 {[%clk 0:01:31]}  Rxd1 {[%clk 0:00:57]} 34. Qxd1 {[%clk 0:01:32]}  Qe7 {[%clk 0:00:56]} 35. Nc4 {[%clk 0:01:30]}  Nd7 {[%clk 0:00:52]} 36. g3 {[%clk 0:01:28]}  Qe6 {[%clk 0:00:48]} 37. b3 {[%clk 0:01:22]}  f5 {[%clk 0:00:47]} 38. Qd6 {[%clk 0:01:15]}  Qxd6 {[%clk 0:00:41]} 39. Nxd6 {[%clk 0:01:16]}  fxe4 {[%clk 0:00:42]} 40. fxe4 {[%clk 0:01:17]}  Nf6 {[%clk 0:00:33]} 41. Bd3 {[%clk 0:01:13]}  Kf8 {[%clk 0:00:33]} 42. Kf2 {[%clk 0:01:10]}  Nd7 {[%clk 0:00:22]} 43. Ke3 {[%clk 0:01:09]}  Ke7 {[%clk 0:00:22]} 44. Nc4 {[%clk 0:01:09]}  Kf6 {[%clk 0:00:19]} 45. Bf1 {[%clk 0:01:09]}  g5 {[%clk 0:00:18]} 46. hxg5+ {[%clk 0:01:09]}  Kxg5 {[%clk 0:00:19]} 47. Bh3 {[%clk 0:01:09]}  Nf6 {[%clk 0:00:20]} 48. Bf5 {[%clk 0:01:09]}  b5 {[%clk 0:00:18]} 49. Nxa5 {[%clk 0:01:07]}  bxa4 {[%clk 0:00:18]} 50. Nxc6 {[%clk 0:01:03]}  a3 {[%clk 0:00:18]} 51. Nxe5 {[%clk 0:00:58]}  Ng4+ {[%clk 0:00:18]} 52. Bxg4 {[%clk 0:00:48]}  a2 {[%clk 0:00:19]} 53. Be2 {[%clk 0:00:41]}  a1=Q {[%clk 0:00:19]} 54. Nf3+ {[%clk 0:00:42]}  Kg4 {[%clk 0:00:18]} 55. Nd2+ {[%clk 0:00:26]}  Kxg3 {[%clk 0:00:18]} 56. Bxh5 {[%clk 0:00:27]}  Qxc3+ {[%clk 0:00:17]} 57. Ke2 {[%clk 0:00:27]}  Kf4 {[%clk 0:00:17]} 58. Bf7 {[%clk 0:00:20]}  Qe3+ {[%clk 0:00:14]} 59. Kd1 {[%clk 0:00:21]}  Qc3 {[%clk 0:00:13]} 60. Ke2 {[%clk 0:00:20]}  Qg7 {[%clk 0:00:13]} 61. Bc4 {[%clk 0:00:20]}  Qg2+ {[%clk 0:00:13]} 62. Kd3 {[%clk 0:00:20]}  Qg3+ {[%clk 0:00:12]} 63. Kc2 {[%clk 0:00:21]}  Ke5 {[%clk 0:00:12]} 64. Be2 {[%clk 0:00:18]}  Kd4 {[%clk 0:00:12]} 65. Nf3+ {[%clk 0:00:19]}  Kxe4 {[%clk 0:00:12]} 66. Nd2+ {[%clk 0:00:20]}  Kd4 {[%clk 0:00:12]} 67. Nf3+ {[%clk 0:00:20]}  Ke3 {[%clk 0:00:13]} 68. Bd1 {[%clk 0:00:20]}  Qg6+ {[%clk 0:00:13]} 69. Kc3 {[%clk 0:00:17]}  Qd3+ {[%clk 0:00:13]} 0-1


[Site "https://www.chess.com"]

[Event "Titled Tuesday Blitz June 20 Late 2023"]
[White "Firouzja, Alireza"]
[Black "Kollars, Dmitrij"]
[WhiteFideId "12573981"]
[BlackFideId "12909572"]
[WhiteElo "2896"]
[BlackElo "2584"]
[Result "1-0"]
[Round "6"]
[TimeControl "180+2"]
[Date "2023.06.20"]
[WhiteClock "0:00:55"]
[BlackClock "0:00:02"]
[Board "3"]

1. d4 {[%clk 0:03:00]}  Nf6 {[%clk 0:02:59]} 2. Bg5 {[%clk 0:03:00]}  d5 {[%clk 0:02:57]} 3. e3 {[%clk 0:03:00]}  c5 {[%clk 0:02:57]} 4. Bxf6 {[%clk 0:02:58]}  gxf6 {[%clk 0:02:57]} 5. dxc5 {[%clk 0:02:59]}  e6 {[%clk 0:02:56]} 6. c4 {[%clk 0:02:58]}  dxc4 {[%clk 0:02:57]} 7. Nd2 {[%clk 0:02:59]}  c3 {[%clk 0:02:57]} 8. bxc3 {[%clk 0:02:58]}  Nd7 {[%clk 0:02:57]} 9. c6 {[%clk 0:02:58]}  bxc6 {[%clk 0:02:58]} 10. Ngf3 {[%clk 0:02:57]}  Bg7 {[%clk 0:02:51]} 11. Be2 {[%clk 0:02:55]}  O-O {[%clk 0:02:50]} 12. O-O {[%clk 0:02:56]}  c5 {[%clk 0:02:41]} 13. e4 {[%clk 0:02:39]}  Qc7 {[%clk 0:02:36]} 14. Re1 {[%clk 0:02:24]}  Rd8 {[%clk 0:02:35]} 15. Qc2 {[%clk 0:02:13]}  Rb8 {[%clk 0:02:28]} 16. Nf1 {[%clk 0:02:12]}  Ne5 {[%clk 0:02:07]} 17. Ng3 {[%clk 0:02:10]}  Bb7 {[%clk 0:02:02]} 18. Nd2 {[%clk 0:02:06]}  Ng6 {[%clk 0:02:00]} 19. Bf1 {[%clk 0:02:01]}  Nf4 {[%clk 0:01:59]} 20. Nc4 {[%clk 0:01:58]}  Rd7 {[%clk 0:01:53]} 21. Rab1 {[%clk 0:01:49]}  Rbd8 {[%clk 0:01:50]} 22. Qa4 {[%clk 0:01:46]}  Ba8 {[%clk 0:01:36]} 23. Na3 {[%clk 0:01:40]}  Nd3 {[%clk 0:01:29]} 24. Bxd3 {[%clk 0:01:39]}  Rxd3 {[%clk 0:01:30]} 25. Nb5 {[%clk 0:01:39]}  Qd7 {[%clk 0:01:26]} 26. Qa5 {[%clk 0:01:34]}  Rb8 {[%clk 0:00:54]} 27. Qxa7 {[%clk 0:01:23]}  Qxa7 {[%clk 0:00:38]} 28. Nxa7 {[%clk 0:01:24]}  Rbd8 {[%clk 0:00:38]} 29. a4 {[%clk 0:01:11]}  Rxc3 {[%clk 0:00:34]} 30. Red1 {[%clk 0:01:11]}  Rxd1+ {[%clk 0:00:23]} 31. Rxd1 {[%clk 0:01:12]}  Bf8 {[%clk 0:00:23]} 32. h3 {[%clk 0:01:02]}  Ra3 {[%clk 0:00:19]} 33. Rd8 {[%clk 0:01:00]}  Bb7 {[%clk 0:00:19]} 34. Rb8 {[%clk 0:00:57]}  Ba6 {[%clk 0:00:16]} 35. Nh5 {[%clk 0:00:57]}  c4 {[%clk 0:00:15]} 36. Nc6 {[%clk 0:00:55]}  h6 {[%clk 0:00:07]} 37. Ne7+ {[%clk 0:00:55]}  Kh7 {[%clk 0:00:08]} 38. Rxf8 {[%clk 0:00:55]}  c3 {[%clk 0:00:02]} 39. Rxf7+ {[%clk 0:00:55]} 1-0


[Site "https://www.chess.com"]

[Event "Titled Tuesday Blitz June 20 Late 2023"]
[White "Rustemov, Alexander"]
[Black "Paravyan, David"]
[WhiteFideId "4119002"]
[BlackFideId "4194985"]
[WhiteElo "2875"]
[BlackElo "2563"]
[Result "0-1"]
[Round "6"]
[TimeControl "180+2"]
[Date "2023.06.20"]
[WhiteClock "0:00:00"]
[BlackClock "0:01:31"]
[Board "4"]

1. d4 {[%clk 0:02:59]}  Nf6 {[%clk 0:02:59]} 2. Nf3 {[%clk 0:02:59]}  g6 {[%clk 0:02:59]} 3. g3 {[%clk 0:03:00]}  Bg7 {[%clk 0:02:59]} 4. Bg2 {[%clk 0:03:01]}  d5 {[%clk 0:03:00]} 5. O-O {[%clk 0:03:01]}  O-O {[%clk 0:03:00]} 6. c3 {[%clk 0:03:01]}  Nbd7 {[%clk 0:02:56]} 7. Re1 {[%clk 0:02:59]}  a5 {[%clk 0:02:56]} 8. Nbd2 {[%clk 0:02:58]}  a4 {[%clk 0:02:56]} 9. e4 {[%clk 0:02:56]}  Nxe4 {[%clk 0:02:56]} 10. Nxe4 {[%clk 0:02:56]}  dxe4 {[%clk 0:02:57]} 11. Rxe4 {[%clk 0:02:53]}  e5 {[%clk 0:02:57]} 12. dxe5 {[%clk 0:02:44]}  Nxe5 {[%clk 0:02:57]} 13. Bf4 {[%clk 0:02:37]}  Qxd1+ {[%clk 0:02:38]} 14. Rxd1 {[%clk 0:02:36]}  Nxf3+ {[%clk 0:02:39]} 15. Bxf3 {[%clk 0:02:35]}  a3 {[%clk 0:02:40]} 16. b3 {[%clk 0:02:29]}  Bxc3 {[%clk 0:02:35]} 17. Rc4 {[%clk 0:02:22]}  Ba5 {[%clk 0:02:29]} 18. Bxc7 {[%clk 0:02:21]}  Be6 {[%clk 0:02:27]} 19. Rcc1 {[%clk 0:02:08]}  Bxc7 {[%clk 0:02:22]} 20. Rxc7 {[%clk 0:02:07]}  Rac8 {[%clk 0:02:19]} 21. Rxb7 {[%clk 0:02:05]}  Rc2 {[%clk 0:02:19]} 22. Ra1 {[%clk 0:02:03]}  Rd8 {[%clk 0:02:15]} 23. Ra7 {[%clk 0:01:37]}  Rdd2 {[%clk 0:02:11]} 24. Rxa3 {[%clk 0:01:38]}  Rxf2 {[%clk 0:02:11]} 25. Ba8 {[%clk 0:01:31]}  Rxh2 {[%clk 0:02:06]} 26. Ra5 {[%clk 0:01:21]}  Rhd2 {[%clk 0:02:01]} 27. Rb1 {[%clk 0:01:12]}  Rc3 {[%clk 0:02:00]} 28. b4 {[%clk 0:00:38]}  Rxg3+ {[%clk 0:01:55]} 29. Kh1 {[%clk 0:00:38]}  Bxa2 {[%clk 0:01:51]} 30. Ra1 {[%clk 0:00:32]}  Be6 {[%clk 0:01:51]} 31. Rb1 {[%clk 0:00:30]}  Bf5 {[%clk 0:01:41]} 32. Rxf5 {[%clk 0:00:22]}  gxf5 {[%clk 0:01:42]} 33. b5 {[%clk 0:00:22]}  Rd4 {[%clk 0:01:40]} 34. Bg2 {[%clk 0:00:16]}  f4 {[%clk 0:01:33]} 35. Kh2 {[%clk 0:00:09]}  Rd2 {[%clk 0:01:33]} 36. Rg1 {[%clk 0:00:00]}  Rb2 {[%clk 0:01:31]} 0-1


[Site "https://www.chess.com"]

[Event "Titled Tuesday Blitz June 20 Late 2023"]
[White "Terry, Renato"]
[Black "Cardoso Cardoso, Jose Gabriel"]
[WhiteFideId "3803457"]
[BlackFideId "4430492"]
[WhiteElo "2575"]
[BlackElo "2484"]
[Result "1-0"]
[Round "6"]
[TimeControl "180+2"]
[Date "2023.06.20"]
[WhiteClock "0:01:39"]
[BlackClock "0:01:07"]
[Board "5"]

1. d4 {[%clk 0:03:00]}  Nf6 {[%clk 0:03:00]} 2. Nf3 {[%clk 0:03:01]}  d5 {[%clk 0:03:00]} 3. c4 {[%clk 0:03:01]}  e6 {[%clk 0:03:00]} 4. Nc3 {[%clk 0:03:02]}  Bb4 {[%clk 0:02:59]} 5. Qa4+ {[%clk 0:03:01]}  Nc6 {[%clk 0:02:59]} 6. Bg5 {[%clk 0:03:01]}  dxc4 {[%clk 0:02:47]} 7. e3 {[%clk 0:03:00]}  Qd5 {[%clk 0:02:24]} 8. Bxf6 {[%clk 0:02:53]}  gxf6 {[%clk 0:02:22]} 9. Qc2 {[%clk 0:02:48]}  b5 {[%clk 0:02:15]} 10. a4 {[%clk 0:02:43]}  f5 {[%clk 0:01:55]} 11. axb5 {[%clk 0:02:36]}  Qxb5 {[%clk 0:01:54]} 12. Be2 {[%clk 0:02:26]}  a5 {[%clk 0:01:36]} 13. O-O {[%clk 0:02:26]}  Bxc3 {[%clk 0:01:32]} 14. Qxc3 {[%clk 0:02:26]}  Ba6 {[%clk 0:01:30]} 15. d5 {[%clk 0:02:23]}  Rg8 {[%clk 0:01:24]} 16. dxc6 {[%clk 0:02:23]}  Qxc6 {[%clk 0:01:25]} 17. Rxa5 {[%clk 0:02:19]}  Bb7 {[%clk 0:01:22]} 18. Rxa8+ {[%clk 0:02:18]}  Bxa8 {[%clk 0:01:23]} 19. Rd1 {[%clk 0:02:10]}  Qc5 {[%clk 0:01:11]} 20. Qf6 {[%clk 0:01:58]}  Bd5 {[%clk 0:01:09]} 21. g3 {[%clk 0:01:50]}  Rg6 {[%clk 0:01:08]} 22. Qh8+ {[%clk 0:01:50]}  Ke7 {[%clk 0:01:09]} 23. Ne5 {[%clk 0:01:40]}  Rf6 {[%clk 0:01:07]} 24. Qxf6+ {[%clk 0:01:39]} 1-0


[Site "https://www.chess.com"]

[Event "Titled Tuesday Blitz June 20 Late 2023"]
[White "Kramnik, Vladimir"]
[Black "Zakhartsov, Vladimir"]
[WhiteFideId "4101588"]
[BlackFideId "4145097"]
[WhiteElo "2703"]
[BlackElo "2508"]
[Result "1-0"]
[Round "6"]
[TimeControl "180+2"]
[Date "2023.06.20"]
[WhiteClock "0:00:04"]
[BlackClock "0:00:00"]
[Board "7"]

1. e4 {[%clk 0:03:00]}  c5 {[%clk 0:02:53]} 2. Nf3 {[%clk 0:03:00]}  d6 {[%clk 0:02:53]} 3. d4 {[%clk 0:03:00]}  cxd4 {[%clk 0:02:53]} 4. Nxd4 {[%clk 0:03:00]}  Nf6 {[%clk 0:02:54]} 5. Nc3 {[%clk 0:03:00]}  g6 {[%clk 0:02:54]} 6. Be2 {[%clk 0:02:59]}  Bg7 {[%clk 0:02:53]} 7. O-O {[%clk 0:02:59]}  Nc6 {[%clk 0:02:54]} 8. Be3 {[%clk 0:02:59]}  O-O {[%clk 0:02:51]} 9. Qd2 {[%clk 0:02:58]}  d5 {[%clk 0:02:46]} 10. exd5 {[%clk 0:02:47]}  Nxd5 {[%clk 0:02:44]} 11. Nxc6 {[%clk 0:02:43]}  bxc6 {[%clk 0:02:45]} 12. Rfd1 {[%clk 0:02:38]}  Bf5 {[%clk 0:02:29]} 13. Nxd5 {[%clk 0:02:36]}  cxd5 {[%clk 0:02:09]} 14. c3 {[%clk 0:02:35]}  Qb8 {[%clk 0:01:31]} 15. a4 {[%clk 0:02:31]}  Rd8 {[%clk 0:01:28]} 16. a5 {[%clk 0:02:11]}  Qc7 {[%clk 0:01:23]} 17. Bf3 {[%clk 0:01:22]}  Rab8 {[%clk 0:01:22]} 18. Ra3 {[%clk 0:01:15]}  Rb5 {[%clk 0:01:03]} 19. b4 {[%clk 0:01:09]}  e5 {[%clk 0:01:03]} 20. c4 {[%clk 0:00:51]}  Qxc4 {[%clk 0:00:46]} 21. Bxa7 {[%clk 0:00:51]}  Qxb4 {[%clk 0:00:32]} 22. Qxb4 {[%clk 0:00:51]}  Rxb4 {[%clk 0:00:33]} 23. Bb6 {[%clk 0:00:49]}  Rb8 {[%clk 0:00:20]} 24. Bxd5 {[%clk 0:00:44]}  Bf8 {[%clk 0:00:18]} 25. Rc3 {[%clk 0:00:35]}  R4xb6 {[%clk 0:00:12]} 26. axb6 {[%clk 0:00:34]}  Rxb6 {[%clk 0:00:13]} 27. Rc7 {[%clk 0:00:21]}  Be6 {[%clk 0:00:08]} 28. Bxe6 {[%clk 0:00:21]}  Rxe6 {[%clk 0:00:08]} 29. g3 {[%clk 0:00:21]}  Rf6 {[%clk 0:00:06]} 30. Kg2 {[%clk 0:00:20]}  Kg7 {[%clk 0:00:06]} 31. Rdd7 {[%clk 0:00:19]}  h5 {[%clk 0:00:06]} 32. h3 {[%clk 0:00:18]}  Rf5 {[%clk 0:00:06]} 33. Rc8 {[%clk 0:00:17]}  Ba3 {[%clk 0:00:05]} 34. Rdd8 {[%clk 0:00:16]}  Kf6 {[%clk 0:00:02]} 35. Rc6+ {[%clk 0:00:14]}  Kg7 {[%clk 0:00:02]} 36. f3 {[%clk 0:00:14]}  Bb2 {[%clk 0:00:03]} 37. Rcc8 {[%clk 0:00:11]}  Kf6 {[%clk 0:00:02]} 38. Rg8 {[%clk 0:00:11]}  Bd4 {[%clk 0:00:02]} 39. Rc6+ {[%clk 0:00:11]}  Ke7 {[%clk 0:00:02]} 40. Rb8 {[%clk 0:00:10]}  Kd7 {[%clk 0:00:02]} 41. Ra6 {[%clk 0:00:09]}  Kc7 {[%clk 0:00:02]} 42. Rb1 {[%clk 0:00:07]}  Rg5 {[%clk 0:00:01]} 43. h4 {[%clk 0:00:05]}  Rf5 {[%clk 0:00:02]} 44. Rc1+ {[%clk 0:00:04]}  Kb7 {[%clk 0:00:00]} 45. Rd6 {[%clk 0:00:04]} 1-0


[Site "https://www.chess.com"]

[Event "Titled Tuesday Blitz June 20 Late 2023"]
[White "Tsaruk, Maksim"]
[Black "Van Foreest, Jorden"]
[WhiteFideId "13511173"]
[BlackFideId "1039784"]
[WhiteElo "2363"]
[BlackElo "2633"]
[Result "1-0"]
[Round "6"]
[TimeControl "180+2"]
[Date "2023.06.20"]
[WhiteClock "0:00:56"]
[BlackClock "0:00:25"]
[Board "11"]

1. e4 {[%clk 0:03:00]}  c6 {[%clk 0:02:58]} 2. d4 {[%clk 0:03:00]}  d5 {[%clk 0:02:58]} 3. Nc3 {[%clk 0:02:59]}  dxe4 {[%clk 0:02:58]} 4. Nxe4 {[%clk 0:03:00]}  Bf5 {[%clk 0:02:56]} 5. Ng3 {[%clk 0:03:00]}  Bg6 {[%clk 0:02:57]} 6. Nf3 {[%clk 0:03:00]}  Nd7 {[%clk 0:02:55]} 7. h4 {[%clk 0:03:01]}  h6 {[%clk 0:02:55]} 8. h5 {[%clk 0:03:02]}  Bh7 {[%clk 0:02:56]} 9. Bd3 {[%clk 0:03:02]}  Bxd3 {[%clk 0:02:55]} 10. Qxd3 {[%clk 0:03:03]}  e6 {[%clk 0:02:55]} 11. Bd2 {[%clk 0:03:04]}  Ngf6 {[%clk 0:02:53]} 12. O-O-O {[%clk 0:03:05]}  Be7 {[%clk 0:02:53]} 13. Kb1 {[%clk 0:03:05]}  Qb6 {[%clk 0:02:51]} 14. Rhe1 {[%clk 0:03:03]}  O-O {[%clk 0:02:49]} 15. Nf5 {[%clk 0:03:02]}  Rfe8 {[%clk 0:02:44]} 16. Nxh6+ {[%clk 0:02:45]}  gxh6 {[%clk 0:02:44]} 17. g4 {[%clk 0:02:46]}  Qb5 {[%clk 0:02:44]} 18. c4 {[%clk 0:02:44]}  Qb6 {[%clk 0:02:12]} 19. g5 {[%clk 0:02:37]}  Ng4 {[%clk 0:02:06]} 20. g6 {[%clk 0:02:04]}  Nf8 {[%clk 0:02:00]} 21. gxf7+ {[%clk 0:01:52]}  Kxf7 {[%clk 0:02:00]} 22. Rg1 {[%clk 0:01:51]}  Bf6 {[%clk 0:01:19]} 23. Rxg4 {[%clk 0:01:50]}  Ke7 {[%clk 0:01:09]} 24. Bxh6 {[%clk 0:01:48]}  Nd7 {[%clk 0:01:07]} 25. Ne5 {[%clk 0:01:38]}  Rh8 {[%clk 0:00:47]} 26. Ng6+ {[%clk 0:01:15]}  Kf7 {[%clk 0:00:48]} 27. Nxh8+ {[%clk 0:01:09]}  Rxh8 {[%clk 0:00:48]} 28. Bg7 {[%clk 0:01:09]}  Rg8 {[%clk 0:00:35]} 29. Qg6+ {[%clk 0:01:09]}  Ke7 {[%clk 0:00:36]} 30. Qh7 {[%clk 0:00:58]}  Rxg7 {[%clk 0:00:25]} 31. Rxg7+ {[%clk 0:00:58]}  Bxg7 {[%clk 0:00:26]} 32. Qxg7+ {[%clk 0:00:59]}  Kd8 {[%clk 0:00:26]} 33. h6 {[%clk 0:01:00]}  Qa5 {[%clk 0:00:26]} 34. h7 {[%clk 0:00:55]}  Qf5+ {[%clk 0:00:25]} 35. Ka1 {[%clk 0:00:56]} 1-0


[Site "https://www.chess.com"]